[Event "Titled Tuesday Blitz August 1 Early 2023"]
[White "Kazakouski, Valery"]
[Black "Bychkov, Vladimir"]
[WhiteFideId "13507443"]
[BlackFideId "24151513"]
[WhiteElo "2827"]
[BlackElo "2455"]
[Result "1-0"]
[Round "1"]
[TimeControl "180+1"]
[Date "2023.08.01"]
[WhiteClock "0:00:59"]
[BlackClock "0:00:09"]
[Board "52"]

1. Nf3 {[%clk 0:03:00]}  d5 {[%clk 0:02:56]} 2. c4 {[%clk 0:03:01]}  c6 {[%clk 0:02:55]} 3. g3 {[%clk 0:03:01]}  Nf6 {[%clk 0:02:55]} 4. Bg2 {[%clk 0:03:01]}  g6 {[%clk 0:02:55]} 5. b3 {[%clk 0:03:01]}  Bg7 {[%clk 0:02:56]} 6. Bb2 {[%clk 0:03:01]}  O-O {[%clk 0:02:56]} 7. O-O {[%clk 0:03:02]}  Bf5 {[%clk 0:02:55]} 8. d3 {[%clk 0:03:01]}  a5 {[%clk 0:02:54]} 9. Nc3 {[%clk 0:03:00]}  h5 {[%clk 0:02:47]} 10. Qc2 {[%clk 0:02:59]}  Na6 {[%clk 0:02:45]} 11. a3 {[%clk 0:02:59]}  Nc5 {[%clk 0:02:42]} 12. Rfc1 {[%clk 0:02:36]}  a4 {[%clk 0:02:35]} 13. Nxa4 {[%clk 0:02:33]}  Nxa4 {[%clk 0:02:35]} 14. bxa4 {[%clk 0:02:34]}  Qa5 {[%clk 0:02:34]} 15. cxd5 {[%clk 0:02:34]}  cxd5 {[%clk 0:02:30]} 16. Qc7 {[%clk 0:02:34]}  Qxa4 {[%clk 0:02:20]} 17. Nd4 {[%clk 0:02:34]}  Ne8 {[%clk 0:02:07]} 18. Qxb7 {[%clk 0:02:27]}  Ra7 {[%clk 0:01:30]} 19. Qb4 {[%clk 0:02:23]}  Qd7 {[%clk 0:01:15]} 20. Qd2 {[%clk 0:02:20]}  Nd6 {[%clk 0:01:09]} 21. Nc6 {[%clk 0:02:15]}  Bxb2 {[%clk 0:01:06]} 22. Qxb2 {[%clk 0:02:16]}  Rb7 {[%clk 0:01:06]} 23. Qe5 {[%clk 0:02:16]}  e6 {[%clk 0:01:01]} 24. e4 {[%clk 0:02:10]}  dxe4 {[%clk 0:00:38]} 25. dxe4 {[%clk 0:02:11]}  Rb5 {[%clk 0:00:38]} 26. Qd4 {[%clk 0:02:05]}  e5 {[%clk 0:00:37]} 27. Nxe5 {[%clk 0:02:03]}  Qe6 {[%clk 0:00:32]} 28. exf5 {[%clk 0:02:02]}  Qxe5 {[%clk 0:00:32]} 29. Qxe5 {[%clk 0:02:01]}  Rxe5 {[%clk 0:00:33]} 30. fxg6 {[%clk 0:02:02]}  fxg6 {[%clk 0:00:33]} 31. Rc6 {[%clk 0:02:02]}  Rf6 {[%clk 0:00:29]} 32. Rd1 {[%clk 0:02:00]}  Ne8 {[%clk 0:00:26]} 33. Rxf6 {[%clk 0:01:56]}  Nxf6 {[%clk 0:00:27]} 34. a4 {[%clk 0:01:55]}  Ra5 {[%clk 0:00:26]} 35. Ra1 {[%clk 0:01:55]}  Nd7 {[%clk 0:00:25]} 36. Bc6 {[%clk 0:01:54]}  Nc5 {[%clk 0:00:25]} 37. Bb5 {[%clk 0:01:54]}  Kg7 {[%clk 0:00:25]} 38. Kf1 {[%clk 0:01:53]}  Kf6 {[%clk 0:00:26]} 39. Ke2 {[%clk 0:01:54]}  Ke5 {[%clk 0:00:26]} 40. Ke3 {[%clk 0:01:54]}  g5 {[%clk 0:00:25]} 41. f4+ {[%clk 0:01:51]}  gxf4+ {[%clk 0:00:26]} 42. gxf4+ {[%clk 0:01:52]}  Kf6 {[%clk 0:00:26]} 43. Ra2 {[%clk 0:01:50]}  Ra8 {[%clk 0:00:25]} 44. Kd4 {[%clk 0:01:49]}  Ne6+ {[%clk 0:00:25]} 45. Ke4 {[%clk 0:01:50]}  Nc5+ {[%clk 0:00:25]} 46. Kd5 {[%clk 0:01:50]}  Ne6 {[%clk 0:00:26]} 47. Rf2 {[%clk 0:01:42]}  h4 {[%clk 0:00:23]} 48. f5 {[%clk 0:01:39]}  Rd8+ {[%clk 0:00:22]} 49. Kc6 {[%clk 0:01:38]}  Nd4+ {[%clk 0:00:23]} 50. Kc7 {[%clk 0:01:39]}  Ra8 {[%clk 0:00:20]} 51. Rf4 {[%clk 0:01:34]}  Ke5 {[%clk 0:00:19]} 52. Rxh4 {[%clk 0:01:24]}  Nxf5 {[%clk 0:00:19]} 53. Rb4 {[%clk 0:01:12]}  Nd6 {[%clk 0:00:18]} 54. Rb1 {[%clk 0:01:02]}  Ra7+ {[%clk 0:00:17]} 55. Kb6 {[%clk 0:01:01]}  Ra8 {[%clk 0:00:17]} 56. Re1+ {[%clk 0:00:59]}  Kd4 {[%clk 0:00:17]} 57. Rd1+ {[%clk 0:01:00]}  Ke5 {[%clk 0:00:18]} 58. Bc6 {[%clk 0:01:00]}  Rb8+ {[%clk 0:00:18]} 59. Kc7 {[%clk 0:01:00]}  Rc8+ {[%clk 0:00:12]} 60. Kd7 {[%clk 0:01:01]}  Rh8 {[%clk 0:00:12]} 61. Re1+ {[%clk 0:00:59]}  Kd4 {[%clk 0:00:09]} 62. Kxd6 {[%clk 0:00:59]} 1-0


[Site "https://www.chess.com"]

[Event "Titled Tuesday Blitz August 1 Early 2023"]
[White "Pichot, Alan"]
[Black "chessmateto"]
[WhiteFideId "110973"]
[WhiteElo "2827"]
[BlackElo "2453"]
[Result "1-0"]
[Round "1"]
[TimeControl "180+1"]
[Date "2023.08.01"]
[WhiteClock "0:01:32"]
[BlackClock "0:00:09"]
[Board "54"]

1. d4 {[%clk 0:03:00]}  d5 {[%clk 0:02:59]} 2. Nf3 {[%clk 0:03:00]}  Nf6 {[%clk 0:02:59]} 3. c4 {[%clk 0:03:00]}  c6 {[%clk 0:02:59]} 4. e3 {[%clk 0:03:00]}  Bf5 {[%clk 0:02:57]} 5. Nc3 {[%clk 0:02:57]}  e6 {[%clk 0:02:58]} 6. Be2 {[%clk 0:02:58]}  Nbd7 {[%clk 0:02:57]} 7. Nh4 {[%clk 0:02:55]}  Be4 {[%clk 0:02:51]} 8. O-O {[%clk 0:02:52]}  Be7 {[%clk 0:02:47]} 9. f3 {[%clk 0:02:48]}  Bg6 {[%clk 0:02:47]} 10. g3 {[%clk 0:02:49]}  O-O {[%clk 0:02:40]} 11. Nxg6 {[%clk 0:02:47]}  hxg6 {[%clk 0:02:40]} 12. b3 {[%clk 0:02:47]}  Rc8 {[%clk 0:02:32]} 13. Bb2 {[%clk 0:02:46]}  Qb6 {[%clk 0:02:13]} 14. c5 {[%clk 0:02:45]}  Qc7 {[%clk 0:02:12]} 15. f4 {[%clk 0:02:46]}  a5 {[%clk 0:02:10]} 16. a3 {[%clk 0:02:45]}  b6 {[%clk 0:02:08]} 17. b4 {[%clk 0:02:45]}  bxc5 {[%clk 0:02:08]} 18. bxc5 {[%clk 0:02:45]}  Rb8 {[%clk 0:02:06]} 19. Rb1 {[%clk 0:02:44]}  Ne4 {[%clk 0:02:01]} 20. Qc2 {[%clk 0:02:30]}  f5 {[%clk 0:01:53]} 21. Nxe4 {[%clk 0:02:30]}  fxe4 {[%clk 0:01:53]} 22. Bg4 {[%clk 0:02:29]}  Rf6 {[%clk 0:01:45]} 23. Bc3 {[%clk 0:02:24]}  Nf8 {[%clk 0:01:18]} 24. Rxb8 {[%clk 0:02:19]}  Qxb8 {[%clk 0:01:17]} 25. Rb1 {[%clk 0:02:19]}  Qc7 {[%clk 0:01:14]} 26. Qa4 {[%clk 0:02:06]}  g5 {[%clk 0:01:07]} 27. Qxa5 {[%clk 0:02:06]}  Qd7 {[%clk 0:00:59]} 28. Qa8 {[%clk 0:02:05]}  gxf4 {[%clk 0:00:57]} 29. Rb7 {[%clk 0:02:04]}  Qd8 {[%clk 0:00:48]} 30. Qxd8 {[%clk 0:02:04]}  Bxd8 {[%clk 0:00:49]} 31. gxf4 {[%clk 0:02:04]}  g5 {[%clk 0:00:45]} 32. fxg5 {[%clk 0:02:01]}  Rg6 {[%clk 0:00:45]} 33. h4 {[%clk 0:01:52]}  Bxg5 {[%clk 0:00:44]} 34. hxg5 {[%clk 0:01:53]}  Rxg5 {[%clk 0:00:44]} 35. a4 {[%clk 0:01:53]}  Rxg4+ {[%clk 0:00:40]} 36. Kf2 {[%clk 0:01:52]}  Rh4 {[%clk 0:00:35]} 37. Kg3 {[%clk 0:01:47]}  Rh1 {[%clk 0:00:34]} 38. a5 {[%clk 0:01:47]}  Rc1 {[%clk 0:00:32]} 39. Bb2 {[%clk 0:01:44]}  Rc4 {[%clk 0:00:30]} 40. a6 {[%clk 0:01:44]}  Ra4 {[%clk 0:00:30]} 41. a7 {[%clk 0:01:45]}  Ra6 {[%clk 0:00:28]} 42. Bc3 {[%clk 0:01:44]}  Ra3 {[%clk 0:00:26]} 43. Kf4 {[%clk 0:01:41]}  Ng6+ {[%clk 0:00:19]} 44. Kg5 {[%clk 0:01:41]}  Nf8 {[%clk 0:00:19]} 45. Kf6 {[%clk 0:01:41]}  Ra4 {[%clk 0:00:19]} 46. Ke7 {[%clk 0:01:32]}  Ra2 {[%clk 0:00:19]} 47. Kd6 {[%clk 0:01:32]}  Ra6 {[%clk 0:00:17]} 48. Be1 {[%clk 0:01:31]}  Kh8 {[%clk 0:00:15]} 49. Bh4 {[%clk 0:01:31]}  Kg8 {[%clk 0:00:15]} 50. Bd8 {[%clk 0:01:31]}  Kh8 {[%clk 0:00:15]} 51. Bb6 {[%clk 0:01:31]}  Kg8 {[%clk 0:00:09]} 52. Rb8 {[%clk 0:01:32]} 1-0


[Site "https://www.chess.com"]

[Event "Titled Tuesday Blitz August 1 Early 2023"]
[White "Sychev, Klementy"]
[Black "Kokoszczynski, Jan"]
[WhiteFideId "4114060"]
[BlackFideId "1174460"]
[WhiteElo "2818"]
[BlackElo "2451"]
[Result "1-0"]
[Round "1"]
[TimeControl "180+1"]
[Date "2023.08.01"]
[WhiteClock "0:00:03"]
[BlackClock "0:00:01"]
[Board "56"]

1. e4 {[%clk 0:02:58]}  e5 {[%clk 0:02:55]} 2. Nf3 {[%clk 0:02:58]}  Nc6 {[%clk 0:02:55]} 3. d4 {[%clk 0:02:56]}  exd4 {[%clk 0:02:55]} 4. c3 {[%clk 0:02:56]}  d5 {[%clk 0:02:50]} 5. exd5 {[%clk 0:02:55]}  Qxd5 {[%clk 0:02:51]} 6. cxd4 {[%clk 0:02:55]}  Bg4 {[%clk 0:02:49]} 7. Be2 {[%clk 0:02:55]}  Bb4+ {[%clk 0:02:48]} 8. Nc3 {[%clk 0:02:53]}  Nf6 {[%clk 0:02:45]} 9. O-O {[%clk 0:02:53]}  Bxc3 {[%clk 0:02:44]} 10. bxc3 {[%clk 0:02:52]}  O-O {[%clk 0:02:44]} 11. h3 {[%clk 0:02:50]}  Bh5 {[%clk 0:02:44]} 12. c4 {[%clk 0:02:44]}  Qd6 {[%clk 0:02:36]} 13. d5 {[%clk 0:02:41]}  Ne7 {[%clk 0:02:16]} 14. Qb3 {[%clk 0:02:34]}  b6 {[%clk 0:01:57]} 15. Ba3 {[%clk 0:02:33]}  Qd8 {[%clk 0:01:57]} 16. Rfe1 {[%clk 0:02:31]}  Re8 {[%clk 0:01:57]} 17. Rad1 {[%clk 0:02:23]}  Bg6 {[%clk 0:01:46]} 18. Ne5 {[%clk 0:01:59]}  Nf5 {[%clk 0:01:37]} 19. Bf1 {[%clk 0:01:53]}  Nd6 {[%clk 0:01:33]} 20. Bb2 {[%clk 0:01:40]}  a5 {[%clk 0:01:06]} 21. Nc6 {[%clk 0:01:34]}  Qd7 {[%clk 0:01:05]} 22. Bxf6 {[%clk 0:01:34]}  gxf6 {[%clk 0:01:06]} 23. Qb2 {[%clk 0:01:25]}  Rxe1 {[%clk 0:01:05]} 24. Rxe1 {[%clk 0:01:24]}  Re8 {[%clk 0:01:05]} 25. Rxe8+ {[%clk 0:01:21]}  Nxe8 {[%clk 0:01:06]} 26. Qd4 {[%clk 0:01:00]}  Qd6 {[%clk 0:00:55]} 27. Qe3 {[%clk 0:00:59]}  Kf8 {[%clk 0:00:52]} 28. h4 {[%clk 0:00:56]}  Ng7 {[%clk 0:00:47]} 29. Bd3 {[%clk 0:00:45]}  Bxd3 {[%clk 0:00:13]} 30. Qxd3 {[%clk 0:00:45]}  Kg8 {[%clk 0:00:13]} 31. Qe4 {[%clk 0:00:42]}  Qa3 {[%clk 0:00:10]} 32. Qf4 {[%clk 0:00:36]}  Qd6 {[%clk 0:00:08]} 33. Qe4 {[%clk 0:00:17]}  f5 {[%clk 0:00:07]} 34. Qe3 {[%clk 0:00:16]}  f4 {[%clk 0:00:06]} 35. Qe4 {[%clk 0:00:16]}  Qf6 {[%clk 0:00:06]} 36. Qe2 {[%clk 0:00:07]}  Qxh4 {[%clk 0:00:06]} 37. Qe5 {[%clk 0:00:06]}  h5 {[%clk 0:00:05]} 38. Qxc7 {[%clk 0:00:06]}  f3 {[%clk 0:00:04]} 39. gxf3 {[%clk 0:00:05]}  Qg5+ {[%clk 0:00:05]} 40. Kf1 {[%clk 0:00:05]}  Qc1+ {[%clk 0:00:05]} 41. Kg2 {[%clk 0:00:05]}  h4 {[%clk 0:00:04]} 42. Qe5 {[%clk 0:00:05]}  Qxc4 {[%clk 0:00:04]} 43. Ne7+ {[%clk 0:00:04]}  Kf8 {[%clk 0:00:04]} 44. d6 {[%clk 0:00:04]}  Qe6 {[%clk 0:00:04]} 45. Qf4 {[%clk 0:00:03]}  Qd5 {[%clk 0:00:01]} 46. Nxd5 {[%clk 0:00:03]} 1-0


[Site "https://www.chess.com"]

[Event "Titled Tuesday Blitz August 1 Early 2023"]
[White "Harvey, Marcus R"]
[Black "Rodriguez, Santiago"]
[WhiteFideId "400092"]
[BlackFideId "3000591"]
[WhiteElo "2806"]
[BlackElo "2449"]
[Result "1-0"]
[Round "1"]
[TimeControl "180+1"]
[Date "2023.08.01"]
[WhiteClock "0:01:49"]
[BlackClock "0:00:14"]
[Board "58"]

1. d4 {[%clk 0:02:56]}  Nf6 {[%clk 0:02:59]} 2. c4 {[%clk 0:02:56]}  e6 {[%clk 0:02:59]} 3. g3 {[%clk 0:02:56]}  d5 {[%clk 0:02:58]} 4. Bg2 {[%clk 0:02:57]}  Be7 {[%clk 0:02:58]} 5. Nf3 {[%clk 0:02:57]}  O-O {[%clk 0:02:59]} 6. O-O {[%clk 0:02:58]}  dxc4 {[%clk 0:02:59]} 7. Qc2 {[%clk 0:02:58]}  b6 {[%clk 0:02:59]} 8. Bg5 {[%clk 0:02:49]}  Nbd7 {[%clk 0:02:43]} 9. Bxf6 {[%clk 0:02:40]}  Nxf6 {[%clk 0:02:42]} 10. Ne5 {[%clk 0:02:40]}  Nd5 {[%clk 0:02:28]} 11. Nc6 {[%clk 0:02:39]}  Qd6 {[%clk 0:02:12]} 12. Qxc4 {[%clk 0:02:33]}  Bb7 {[%clk 0:02:04]} 13. Rc1 {[%clk 0:02:27]}  Bxc6 {[%clk 0:01:59]} 14. Qxc6 {[%clk 0:02:26]}  Qxc6 {[%clk 0:02:00]} 15. Rxc6 {[%clk 0:02:26]}  Bd6 {[%clk 0:01:59]} 16. Bxd5 {[%clk 0:02:26]}  exd5 {[%clk 0:02:00]} 17. Nc3 {[%clk 0:02:26]}  Rfe8 {[%clk 0:01:39]} 18. e3 {[%clk 0:02:26]}  Red8 {[%clk 0:01:17]} 19. Nxd5 {[%clk 0:02:20]}  Bxg3 {[%clk 0:01:09]} 20. Ne7+ {[%clk 0:02:20]}  Kf8 {[%clk 0:01:09]} 21. hxg3 {[%clk 0:02:20]}  Kxe7 {[%clk 0:01:09]} 22. Rxc7+ {[%clk 0:02:21]}  Ke6 {[%clk 0:01:10]} 23. Rac1 {[%clk 0:02:20]}  Rd7 {[%clk 0:01:04]} 24. d5+ {[%clk 0:02:05]}  Ke7 {[%clk 0:00:59]} 25. e4 {[%clk 0:02:02]}  Rd8 {[%clk 0:00:53]} 26. f4 {[%clk 0:01:59]}  g6 {[%clk 0:00:39]} 27. e5 {[%clk 0:01:55]}  Kf8 {[%clk 0:00:19]} 28. d6 {[%clk 0:01:49]}  Kg7 {[%clk 0:00:14]} 1-0


[Site "https://www.chess.com"]

[Event "Titled Tuesday Blitz August 1 Early 2023"]
[White "Zeman, Matyas"]
[Black "Mahdavi, Reza"]
[WhiteFideId "364398"]
[BlackFideId "12595926"]
[WhiteElo "2446"]
[BlackElo "2799"]
[Result "0-1"]
[Round "1"]
[TimeControl "180+1"]
[Date "2023.08.01"]
[WhiteClock "0:00:01"]
[BlackClock "0:00:06"]
[Board "61"]

1. d4 {[%clk 0:03:00]}  Nf6 {[%clk 0:02:47]} 2. Nf3 {[%clk 0:03:00]}  e6 {[%clk 0:02:46]} 3. Bf4 {[%clk 0:03:00]}  d5 {[%clk 0:02:38]} 4. e3 {[%clk 0:02:59]}  Bd6 {[%clk 0:02:29]} 5. Bg3 {[%clk 0:02:56]}  O-O {[%clk 0:02:24]} 6. Nbd2 {[%clk 0:02:49]}  b6 {[%clk 0:02:01]} 7. c3 {[%clk 0:02:41]}  c5 {[%clk 0:01:52]} 8. Bd3 {[%clk 0:02:40]}  Ba6 {[%clk 0:01:50]} 9. Bxa6 {[%clk 0:02:40]}  Nxa6 {[%clk 0:01:51]} 10. Qa4 {[%clk 0:02:40]}  Nb8 {[%clk 0:01:48]} 11. O-O {[%clk 0:02:36]}  Qc7 {[%clk 0:01:45]} 12. Bxd6 {[%clk 0:02:35]}  Qxd6 {[%clk 0:01:46]} 13. dxc5 {[%clk 0:02:28]}  bxc5 {[%clk 0:01:44]} 14. e4 {[%clk 0:02:28]}  Nc6 {[%clk 0:01:43]} 15. Rad1 {[%clk 0:02:26]}  Qc7 {[%clk 0:01:39]} 16. exd5 {[%clk 0:02:22]}  exd5 {[%clk 0:01:40]} 17. Nb3 {[%clk 0:02:10]}  c4 {[%clk 0:01:26]} 18. Nbd4 {[%clk 0:02:06]}  Ne7 {[%clk 0:01:25]} 19. Rfe1 {[%clk 0:02:00]}  Ng6 {[%clk 0:01:24]} 20. Re2 {[%clk 0:01:46]}  Nf4 {[%clk 0:01:09]} 21. Rc2 {[%clk 0:01:35]}  Rfe8 {[%clk 0:01:00]} 22. Qc6 {[%clk 0:01:02]}  Qe7 {[%clk 0:00:53]} 23. g3 {[%clk 0:00:48]}  Nd3 {[%clk 0:00:38]} 24. Re2 {[%clk 0:00:48]}  Qf8 {[%clk 0:00:34]} 25. Rdd2 {[%clk 0:00:38]}  Ne4 {[%clk 0:00:32]} 26. Rc2 {[%clk 0:00:35]}  Rad8 {[%clk 0:00:31]} 27. Nf5 {[%clk 0:00:31]}  Re6 {[%clk 0:00:23]} 28. Qc7 {[%clk 0:00:28]}  Rde8 {[%clk 0:00:20]} 29. N3d4 {[%clk 0:00:27]}  Re5 {[%clk 0:00:21]} 30. f3 {[%clk 0:00:25]}  Nf6 {[%clk 0:00:18]} 31. b3 {[%clk 0:00:12]}  g6 {[%clk 0:00:16]} 32. Nd6 {[%clk 0:00:09]}  R8e7 {[%clk 0:00:11]} 33. Qc6 {[%clk 0:00:04]}  Rxe2 {[%clk 0:00:09]} 34. Rxe2 {[%clk 0:00:05]}  Rxe2 {[%clk 0:00:10]} 35. Nxe2 {[%clk 0:00:05]}  Qe7 {[%clk 0:00:11]} 36. Qc8+ {[%clk 0:00:01]}  Kg7 {[%clk 0:00:11]} 37. Nd4 {[%clk 0:00:02]}  Qe1+ {[%clk 0:00:10]} 38. Kg2 {[%clk 0:00:03]}  Qf2+ {[%clk 0:00:11]} 39. Kh3 {[%clk 0:00:03]}  Qf1+ {[%clk 0:00:12]} 40. Kh4 {[%clk 0:00:03]}  h6 {[%clk 0:00:07]} 41. f4 {[%clk 0:00:02]}  Nxf4 {[%clk 0:00:07]} 42. N6f5+ {[%clk 0:00:02]}  Kh7 {[%clk 0:00:07]} 43. Qf8 {[%clk 0:00:01]}  g5# {[%clk 0:00:06]} 0-1


[Site "https://www.chess.com"]

[Event "Titled Tuesday Blitz August 1 Early 2023"]
[White "Gaal, Zsoka"]
[Black "Rahman, Masruri"]
[WhiteFideId "777765"]
[BlackFideId "7101163"]
[WhiteElo "2445"]
[BlackElo "2790"]
[Result "1/2-1/2"]
[Round "1"]
[TimeControl "180+1"]
[Date "2023.08.01"]
[WhiteClock "0:00:02"]
[BlackClock "0:00:03"]
[Board "63"]

1. Nf3 {[%clk 0:02:59]}  d5 {[%clk 0:02:59]} 2. g3 {[%clk 0:02:58]}  c6 {[%clk 0:03:00]} 3. Bg2 {[%clk 0:02:58]}  Nf6 {[%clk 0:02:58]} 4. O-O {[%clk 0:02:58]}  Bf5 {[%clk 0:02:58]} 5. c4 {[%clk 0:02:57]}  e6 {[%clk 0:02:58]} 6. Qb3 {[%clk 0:02:54]}  Qb6 {[%clk 0:02:58]} 7. d3 {[%clk 0:02:54]}  Nbd7 {[%clk 0:02:58]} 8. cxd5 {[%clk 0:02:54]}  cxd5 {[%clk 0:02:56]} 9. Qxb6 {[%clk 0:02:50]}  axb6 {[%clk 0:02:51]} 10. Nd4 {[%clk 0:02:50]}  Bg6 {[%clk 0:02:51]} 11. Nb5 {[%clk 0:02:50]}  Rc8 {[%clk 0:02:49]} 12. N1c3 {[%clk 0:02:44]}  Be7 {[%clk 0:02:45]} 13. Bf4 {[%clk 0:02:36]}  O-O {[%clk 0:02:42]} 14. Nd6 {[%clk 0:02:30]}  Rb8 {[%clk 0:02:32]} 15. Ncb5 {[%clk 0:02:16]}  Rfd8 {[%clk 0:02:13]} 16. d4 {[%clk 0:01:29]}  Nh5 {[%clk 0:02:02]} 17. Bd2 {[%clk 0:01:11]}  Ndf6 {[%clk 0:01:38]} 18. Bb4 {[%clk 0:01:10]}  Ne8 {[%clk 0:01:26]} 19. Nxe8 {[%clk 0:01:04]}  Bxb4 {[%clk 0:01:25]} 20. Nec7 {[%clk 0:01:05]}  Nf6 {[%clk 0:01:19]} 21. Rfc1 {[%clk 0:01:03]}  h5 {[%clk 0:01:14]} 22. Na7 {[%clk 0:01:01]}  h4 {[%clk 0:01:06]} 23. Ncb5 {[%clk 0:01:01]}  hxg3 {[%clk 0:01:05]} 24. hxg3 {[%clk 0:01:01]}  Ne8 {[%clk 0:01:00]} 25. a3 {[%clk 0:00:58]}  Be7 {[%clk 0:00:59]} 26. Rc3 {[%clk 0:00:57]}  Bf6 {[%clk 0:00:58]} 27. Bf3 {[%clk 0:00:49]}  e5 {[%clk 0:00:48]} 28. dxe5 {[%clk 0:00:49]}  Bxe5 {[%clk 0:00:49]} 29. Re3 {[%clk 0:00:39]}  Bxb2 {[%clk 0:00:46]} 30. Rd1 {[%clk 0:00:38]}  d4 {[%clk 0:00:39]} 31. Re7 {[%clk 0:00:38]}  Nd6 {[%clk 0:00:29]} 32. Nxd6 {[%clk 0:00:36]}  Rxd6 {[%clk 0:00:30]} 33. Nb5 {[%clk 0:00:34]}  Rdd8 {[%clk 0:00:20]} 34. Rxb7 {[%clk 0:00:24]}  Rxb7 {[%clk 0:00:19]} 35. Bxb7 {[%clk 0:00:25]}  d3 {[%clk 0:00:17]} 36. exd3 {[%clk 0:00:20]}  Rxd3 {[%clk 0:00:18]} 37. Rxd3 {[%clk 0:00:15]}  Bxd3 {[%clk 0:00:19]} 38. Bc6 {[%clk 0:00:15]}  Kf8 {[%clk 0:00:14]} 39. Kg2 {[%clk 0:00:12]}  Ke7 {[%clk 0:00:14]} 40. Kf3 {[%clk 0:00:12]}  Bc1 {[%clk 0:00:09]} 41. a4 {[%clk 0:00:11]}  g5 {[%clk 0:00:06]} 42. Na7 {[%clk 0:00:11]}  Kd6 {[%clk 0:00:06]} 43. Bb5 {[%clk 0:00:12]}  Bf5 {[%clk 0:00:05]} 44. Nc6 {[%clk 0:00:11]}  g4+ {[%clk 0:00:06]} 45. Ke2 {[%clk 0:00:10]}  Bb2 {[%clk 0:00:06]} 46. Nb4 {[%clk 0:00:08]}  Be4 {[%clk 0:00:05]} 47. Nd3 {[%clk 0:00:08]}  Bd4 {[%clk 0:00:06]} 48. Nf4 {[%clk 0:00:06]}  Bf3+ {[%clk 0:00:06]} 49. Kf1 {[%clk 0:00:06]}  Kc5 {[%clk 0:00:06]} 50. Nd3+ {[%clk 0:00:06]}  Kd6 {[%clk 0:00:05]} 51. Nf4 {[%clk 0:00:06]}  f6 {[%clk 0:00:05]} 52. Nh5 {[%clk 0:00:06]}  Kc5 {[%clk 0:00:05]} 53. Ng7 {[%clk 0:00:04]}  Kb4 {[%clk 0:00:05]} 54. Ne6 {[%clk 0:00:05]}  Bc3 {[%clk 0:00:06]} 55. Nc7 {[%clk 0:00:03]}  Ka5 {[%clk 0:00:06]} 56. Ne8 {[%clk 0:00:03]}  Bd1 {[%clk 0:00:05]} 57. Nd6 {[%clk 0:00:02]}  Bxa4 {[%clk 0:00:05]} 58. Be2 {[%clk 0:00:02]}  b5 {[%clk 0:00:05]} 59. Bxg4 {[%clk 0:00:02]}  b4 {[%clk 0:00:05]} 60. Be6 {[%clk 0:00:02]}  b3 {[%clk 0:00:03]} 61. Bxb3 {[%clk 0:00:02]}  Bxb3 {[%clk 0:00:04]} 62. Ne4 {[%clk 0:00:02]}  Be5 {[%clk 0:00:04]} 63. Ke2 {[%clk 0:00:03]}  Kb4 {[%clk 0:00:03]} 64. f4 {[%clk 0:00:03]}  Bb2 {[%clk 0:00:04]} 65. g4 {[%clk 0:00:03]}  Bd5 {[%clk 0:00:04]} 66. Ke3 {[%clk 0:00:03]}  Bc4 {[%clk 0:00:05]} 67. g5 {[%clk 0:00:03]}  Bc1+ {[%clk 0:00:05]} 68. Kf3 {[%clk 0:00:03]}  f5 {[%clk 0:00:05]} 69. Nd6 {[%clk 0:00:04]}  Bd5+ {[%clk 0:00:06]} 70. Kg3 {[%clk 0:00:03]}  Be6 {[%clk 0:00:06]} 71. g6 {[%clk 0:00:03]}  Bb2 {[%clk 0:00:07]} 72. Ne8 {[%clk 0:00:02]}  Kc5 {[%clk 0:00:05]} 73. Kh4 {[%clk 0:00:03]}  Kc6 {[%clk 0:00:05]} 74. Kg5 {[%clk 0:00:04]}  Kd7 {[%clk 0:00:06]} 75. Nf6+ {[%clk 0:00:03]}  Ke7 {[%clk 0:00:06]} 76. Nh5 {[%clk 0:00:03]}  Kf8 {[%clk 0:00:04]} 77. Ng3 {[%clk 0:00:03]}  Ke7 {[%clk 0:00:03]} 78. Nxf5+ {[%clk 0:00:03]}  Kd7 {[%clk 0:00:03]} 79. g7 {[%clk 0:00:03]}  Bxg7 {[%clk 0:00:02]} 80. Nxg7 {[%clk 0:00:03]}  Bd5 {[%clk 0:00:03]} 81. f5 {[%clk 0:00:03]}  Ke7 {[%clk 0:00:03]} 82. Kg6 {[%clk 0:00:03]}  Be4 {[%clk 0:00:03]} 83. Kg5 {[%clk 0:00:02]}  Bxf5 {[%clk 0:00:03]} 1/2-1/2


[Site "https://www.chess.com"]

[Event "Titled Tuesday Blitz August 1 Early 2023"]
[White "Dziththauly Ramadhan"]
[Black "Willy, Stephen"]
[WhiteFideId "7105525"]
[BlackFideId "30981468"]
[WhiteElo "2785"]
[BlackElo "2445"]
[Result "0-1"]
[Round "1"]
[TimeControl "180+1"]
[Date "2023.08.01"]
[WhiteClock "0:01:04"]
[BlackClock "0:00:19"]
[Board "64"]

1. d4 {[%clk 0:03:00]}  d5 {[%clk 0:02:57]} 2. c4 {[%clk 0:02:54]}  e6 {[%clk 0:02:54]} 3. cxd5 {[%clk 0:02:54]}  exd5 {[%clk 0:02:54]} 4. Nc3 {[%clk 0:02:55]}  c6 {[%clk 0:02:53]} 5. Qc2 {[%clk 0:02:54]}  g6 {[%clk 0:02:51]} 6. e3 {[%clk 0:02:52]}  Bf5 {[%clk 0:02:51]} 7. Bd3 {[%clk 0:02:52]}  Bxd3 {[%clk 0:02:50]} 8. Qxd3 {[%clk 0:02:53]}  Nf6 {[%clk 0:02:49]} 9. Nge2 {[%clk 0:02:54]}  Bd6 {[%clk 0:02:46]} 10. f3 {[%clk 0:02:46]}  O-O {[%clk 0:02:34]} 11. O-O {[%clk 0:02:39]}  Qe7 {[%clk 0:02:13]} 12. e4 {[%clk 0:02:38]}  Bc7 {[%clk 0:01:45]} 13. e5 {[%clk 0:02:37]}  Nfd7 {[%clk 0:01:43]} 14. f4 {[%clk 0:02:36]}  f6 {[%clk 0:01:41]} 15. Be3 {[%clk 0:02:33]}  Na6 {[%clk 0:01:37]} 16. a3 {[%clk 0:02:31]}  Bb6 {[%clk 0:01:34]} 17. Rae1 {[%clk 0:02:23]}  Nc7 {[%clk 0:01:29]} 18. g4 {[%clk 0:02:19]}  fxe5 {[%clk 0:01:26]} 19. fxe5 {[%clk 0:02:16]}  Qh4 {[%clk 0:01:17]} 20. g5 {[%clk 0:02:12]}  Ne6 {[%clk 0:01:14]} 21. Qd2 {[%clk 0:02:05]}  Nxe5 {[%clk 0:01:05]} 22. dxe5 {[%clk 0:02:00]}  Rxf1+ {[%clk 0:00:36]} 23. Kxf1 {[%clk 0:01:38]}  Qh3+ {[%clk 0:00:33]} 24. Kf2 {[%clk 0:01:34]}  Bxe3+ {[%clk 0:00:27]} 25. Qxe3 {[%clk 0:01:34]}  Rf8+ {[%clk 0:00:28]} 26. Nf4 {[%clk 0:01:33]}  Rxf4+ {[%clk 0:00:27]} 27. Ke2 {[%clk 0:01:34]}  Qg2+ {[%clk 0:00:23]} 28. Kd1 {[%clk 0:01:30]}  Qxb2 {[%clk 0:00:21]} 29. Re2 {[%clk 0:01:19]}  Rf1+ {[%clk 0:00:21]} 30. Re1 {[%clk 0:01:20]}  d4 {[%clk 0:00:21]} 31. Qe2 {[%clk 0:01:09]}  Rxe1+ {[%clk 0:00:20]} 32. Qxe1 {[%clk 0:01:04]}  dxc3 {[%clk 0:00:19]} 0-1


[Site "https://www.chess.com"]